bitfinex-derivatives/quotes_ETHF0:USTF0_20260102
["timestamp","ask_amount","ask_price","bid_price","bid_amount"]
[1767337050909,0.13937769,3028.9,3027.2,0.1449925]
[1767337052420,0.13937769,3028.9,3027.2,0.40641454]
[1767337055521,0.00495205,3029.0,3027.3,0.14072291]
[1767337057626,0.3301,3028.9,3027.3,0.14072291]
[1767337068524,0.13937769,3028.8,3027.2,0.43106163]
[1767337068731,0.13937769,3028.8,3027.2,5.14178454]
[1767337068921,0.13937769,3028.8,3027.3,4.35454675]
[1767337070131,0.13937769,3028.8,3027.2,0.57178454]
[1767337070428,0.13937769,3028.8,3027.2,0.26569163]
[1767337071031,0.46947769,3028.9,3027.3,4.44161122]
[1767337071230,0.46947769,3028.9,3027.3,0.14072291]
[1767337071730,0.13937769,3028.8,3027.3,4.71272291]
[1767337072433,0.13937769,3028.8,3027.3,4.572]
[1767337072627,0.13937769,3028.8,3027.2,4.57626959]
[1767337074328,0.13937769,3028.8,3027.2,0.00426959]
[1767337079234,0.13937769,3028.8,3027.2,0.14887862]
[1767337081428,0.13937769,3028.8,3027.2,0.00426959]
[1767337081633,0.13937769,3028.8,3027.3,4.573]
[1767337082634,0.13937769,3028.8,3027.2,0.00426959]
[1767337082935,0.13937769,3028.8,3027.3,4.573]
[1767337084635,0.14153744,3028.6,3027.3,4.573]
[1767337085435,0.14153744,3028.6,3027.4,4.572]
[1767337088036,0.14153744,3028.6,3027.2,0.00426959]
[1767337088336,0.14153744,3028.6,3027.3,4.573]
[1767337093041,0.14153744,3028.6,3027.2,0.00426959]
[1767337093243,0.14153744,3028.6,3027.3,4.577]
[1767337093540,0.14153744,3028.6,3027.2,0.00426959]
[1767337093731,0.14153744,3028.6,3027.3,4.577]
[1767337094241,0.14153744,3028.6,3027.2,0.00426959]
[1767337094441,0.14153744,3028.6,3027.3,4.578]
[1767337095439,0.14153744,3028.6,3027.2,0.00426959]
[1767337095642,0.14153744,3028.6,3027.3,4.578]
[1767337096835,0.14153744,3028.6,3027.2,0.00426959]
[1767337097046,0.14153744,3028.6,3027.3,4.579]
[1767337097939,0.14153744,3028.6,3027.2,0.00426959]
[1767337098147,0.14153744,3028.6,3027.4,4.579]
[1767337098742,0.14153744,3028.6,3027.4,4.58]
[1767337099245,0.3301,3028.7,3027.4,4.58]
[1767337105754,0.14069533,3028.6,3027.2,0.00426959]
[1767337106058,0.14069533,3028.6,3027.3,4.579]
[1767337106854,0.14069533,3028.6,3027.2,0.14773518]
[1767337107054,0.14069533,3028.6,3027.3,4.58]
[1767337107952,0.14069533,3028.6,3027.4,4.58]
[1767337108452,0.14069533,3028.6,3027.2,0.14773518]
[1767337108654,0.14069533,3028.6,3027.4,4.581]
[1767337109955,0.14069533,3028.6,3027.2,0.14773518]
[1767337110351,0.14069533,3028.6,3027.3,4.581]
[1767337112357,0.14069533,3028.6,3027.2,0.14773518]
[1767337112549,0.14069533,3028.6,3027.3,4.582]
[1767337112745,0.14069533,3028.6,3027.2,0.14773518]
[1767337112951,0.14069533,3028.6,3027.3,4.582]
[1767337116658,0.14069533,3028.6,3027.2,0.00426959]
[1767337116859,0.14069533,3028.6,3027.2,4.58826959]
[1767337117949,0.46891226,3028.5,3027.2,4.58826959]
[1767337118152,0.13881226,3028.4,3027.2,0.00426959]
[1767337118458,0.13881226,3028.4,3027.2,4.58926959]
[1767337118859,0.13881226,3028.4,3027.2,0.00426959]
[1767337125870,0.30412226,3028.4,3027.2,0.00426959]
[1767337126072,0.13881226,3028.3,3027.2,0.00426959]
[1767337126265,0.13881226,3028.2,3027.2,0.00426959]
[1767337128378,0.16532,3028.3,3027.2,0.00426959]
[1767337128681,0.13881226,3028.2,3027.2,0.00426959]
[1767337131083,0.13881226,3028.2,3026.5,0.34186236]
[1767337131985,0.13881226,3028.2,3026.6,0.14346559]
[1767337132287,0.13881226,3028.2,3026.6,0.14609014]
[1767337134888,0.13881226,3028.2,3026.6,0.00262455]
[1767337136088,0.13881226,3028.2,3026.6,0.1359968]
[1767337136586,0.3302,3028.1,3026.6,0.1359968]
[1767337137087,0.14443727,3028.0,3026.6,0.00262455]
[1767337145693,0.14443727,3028.0,3026.6,0.1359968]
[1767337147095,0.49553,3028.1,3026.6,0.1359968]
[1767337147487,0.3302,3028.1,3026.6,0.1359968]
[1767337152693,0.14443727,3028.4,3026.6,0.1359968]
[1767337156702,0.3302,3028.3,3026.6,0.1359968]
[1767337156903,0.47463727,3028.3,3026.6,0.1359968]
[1767337165409,0.13959881,3028.2,3026.6,0.1359968]
[1767337169008,0.13959881,3028.2,3026.6,4.7139968]
[1767337170305,0.13959881,3028.2,3026.6,0.1359968]
[1767337170510,0.13959881,3028.2,3026.6,4.7129968]
[1767337177115,0.13959881,3028.2,3026.6,0.00262455]
[1767337177317,0.13959881,3028.2,3026.6,4.57862455]
[1767337180222,0.13959881,3028.2,3026.6,0.00262455]
[1767337190427,0.13872162,3028.0,3026.6,0.00262455]
[1767337201036,0.13872162,3028.0,3026.6,0.1454311]
[1767337201236,0.3302,3028.1,3026.6,0.1454311]
[1767337202434,0.3302,3028.1,3026.7,0.14280655]
[1767337202822,0.3302,3028.1,3026.7,0.30820655]
[1767337203028,0.3302,3028.1,3026.8,0.14280655]
[1767337203942,0.3302,3028.1,3026.9,0.14280655]
[1767337205736,0.3302,3028.1,3027.0,0.14280655]
[1767337205937,0.00416051,3028.5,3027.1,0.14280655]
[1767337206330,0.00416051,3028.5,3027.2,4.30848395]
[1767337206737,0.00416051,3028.5,3027.3,0.16537]
[1767337206943,0.00416051,3028.5,3027.4,4.571]
[1767337207537,0.00416051,3028.5,3027.5,4.571]
[1767337207731,0.00416051,3028.5,3027.3,0.16537]
[1767337207930,0.14636758,3028.5,3027.3,0.16537]
[1767337208131,0.14636758,3028.5,3027.4,1.454]
[1767337208838,0.3301,3028.4,3027.4,1.454]
[1767337209839,0.3301,3028.4,3027.5,0.16536]
[1767337210036,0.00416051,3028.5,3027.6,0.16535]
[1767337210241,0.14220707,3028.9,3027.6,0.16535]
[1767337211242,0.14464167,3028.9,3027.6,0.16535]
[1767337212339,0.14464167,3028.9,3027.7,4.32725652]
[1767337213740,0.14464167,3028.9,3027.8,4.569]
[1767337216742,0.14464167,3028.9,3027.6,0.16535]
[1767337217135,0.14464167,3028.9,3027.7,4.89256239]
[1767337218739,0.14464167,3028.9,3027.7,4.35356239]
[1767337218936,0.14464167,3028.9,3027.8,4.568]
[1767337219438,0.14464167,3028.9,3027.6,0.16535]
[1767337219743,0.14464167,3028.9,3027.7,3.741]
[1767337222347,0.14464167,3028.9,3027.1,0.16538]
[1767337222740,0.14464167,3028.9,3027.0,4.567]
[1767337225950,0.14464167,3028.9,3027.1,4.567]
[1767337226946,0.14464167,3028.9,3026.9,0.16539]
[1767337227153,0.14464167,3028.9,3027.2,4.567]
[1767337231153,0.14464167,3028.9,3027.3,4.31501267]
[1767337231356,0.14464167,3028.9,3027.3,4.48038267]
[1767337234953,0.14464167,3028.9,3027.4,0.16536]
[1767337235257,0.14464167,3028.9,3027.5,4.35240596]
[1767337235458,0.14464167,3028.9,3027.5,4.51776596]
[1767337235459,0.0024346,3028.9,3027.5,4.51776596]
[1767337235654,0.0024346,3028.9,3027.6,0.16535]
[1767337236049,0.0024346,3028.9,3027.7,4.22186266]
[1767337236559,0.0024346,3028.9,3027.8,0.16534]
[1767337236750,1e-08,3028.9,3027.9,4.575]
[1767337236951,1e-08,3028.9,3027.9,8.84437071]
[1767337242758,1e-08,3028.9,3027.9,4.26937071]
[1767337242947,1e-08,3028.9,3028.0,4.593]
[1767337244262,1e-08,3028.9,3027.8,0.16534]
[1767337244554,1e-08,3028.9,3028.1,4.595]
[1767337246055,0.13451413,3030.4,3028.2,4.31951988]
[1767337246363,0.13451413,3030.4,3028.4,0.16531]
[1767337246761,0.13451413,3030.4,3028.5,4.31951988]
[1767337247062,0.00495205,3029.8,3029.1,0.00495205]
[1767337247255,0.00495205,3029.8,3029.2,4.598]
[1767337248160,0.13862457,3030.4,3029.2,4.598]
[1767337248359,0.13862457,3030.4,3029.1,0.00879215]
[1767337248360,0.13862457,3030.4,3029.3,4.598]
[1767337249064,0.00495205,3030.2,3029.3,4.598]
[1767337251064,0.00495205,3030.2,3029.4,4.597]
[1767337253458,0.13946618,3030.2,3029.1,0.00879215]
[1767337253664,0.13946618,3030.2,3029.5,4.596]
[1767337257273,0.13946618,3030.2,3029.1,0.00879215]
[1767337257463,0.13946618,3030.2,3029.2,4.595]
[1767337260274,0.13946618,3030.2,3029.1,0.00879215]
[1767337260470,0.13946618,3030.2,3028.1,1.21861431]
[1767337260772,0.13946618,3030.2,3028.2,4.594]
[1767337261570,0.13946618,3030.2,3028.9,0.00495205]
[1767337269982,0.00495205,3030.2,3028.9,0.00495205]
[1767337270878,0.14974232,3030.2,3028.9,0.00495205]
[1767337271078,0.14974232,3030.2,3029.0,4.593]
[1767337271774,0.00495205,3030.2,3029.0,4.593]
[1767337271980,0.00495205,3030.2,3029.1,4.27731134]
[1767337274874,0.14974232,3030.2,3029.1,4.27731134]
[1767337275174,0.14974232,3030.2,3029.2,4.595]
[1767337275374,0.14974232,3030.2,3029.3,4.595]
[1767337276172,0.14974232,3030.2,3029.4,4.595]
[1767337277777,0.14974232,3030.2,3028.9,0.00495205]
[1767337277979,0.14974232,3030.2,3029.0,3.05]
[1767337280679,0.14974232,3030.2,3028.9,0.00495205]
[1767337280978,0.14974232,3030.2,3029.0,3.04]
[1767337283777,0.14974232,3030.2,3028.9,0.00495205]
[1767337283977,0.14974232,3030.2,3029.1,4.594]
[1767337295684,0.00495205,3030.2,3029.1,4.594]
[1767337295984,0.14506436,3030.2,3029.1,4.594]
[1767337296186,0.14506436,3030.2,3028.9,0.00495205]
[1767337296485,0.14506436,3030.2,3029.0,1.543]
[1767337296888,0.14506436,3030.2,3028.9,0.00495205]
[1767337297078,0.14506436,3030.2,3029.0,2.297]
[1767337298589,0.14506436,3030.2,3028.9,0.00495205]
[1767337298886,0.14506436,3030.2,3029.0,3.064]
[1767337299891,0.14506436,3030.2,3028.9,0.00495205]
[1767337300186,0.14506436,3030.2,3029.0,3.087]
[1767337300685,0.14506436,3030.2,3028.9,0.00495205]
[1767337315698,0.14506436,3030.2,3029.0,4.34517676]
[1767337316805,0.00495205,3030.2,3029.0,4.34517676]
[1767337318802,0.00495205,3030.2,3029.0,5.49127442]
[1767337321199,2.05e-06,3030.2,3029.0,4.34517676]
[1767337321407,2.05e-06,3030.2,3029.0,5.26825132]
[1767337321705,0.14088707,3031.1,3029.5,0.16525]
[1767337322001,0.14088707,3031.1,3029.6,8.79498149]
[1767337322598,0.14088707,3031.1,3029.6,8.96022149]
[1767337322799,0.00495205,3030.7,3029.6,8.96022149]
[1767337323002,0.14469622,3031.1,3029.6,8.96022149]
[1767337323905,0.14469622,3031.1,3029.7,0.16524]
[1767337324102,0.14469622,3031.1,3029.8,0.16523]
[1767337324401,0.14469622,3031.1,3029.8,4.44116184]
[1767337324711,0.00380915,3031.1,3029.8,4.44116184]
[1767337325001,0.00380915,3031.1,3030.0,0.16522]
[1767337325403,0.14088707,3031.5,3030.1,4.31949913]
[1767337325605,0.14088707,3032.6,3030.1,4.31949913]
[1767337325803,0.14088707,3032.6,3030.2,0.16521]
[1767337326106,0.00495205,3031.7,3031.1,0.00495205]
[1767337326307,0.16504,3033.4,3031.2,4.594]
[1767337327306,0.00326084,3032.6,3031.3,4.594]
[1767337328410,0.14088707,3032.5,3031.3,4.594]
[1767337330208,0.14088707,3032.5,3031.1,0.00783069]
[1767337330411,0.14088707,3032.5,3031.2,4.593]
[1767337334410,0.14088707,3032.5,3031.1,0.00783069]
[1767337334614,0.14088707,3032.5,3031.1,4.59883069]
[1767337334914,0.14088707,3032.5,3031.1,0.00783069]
[1767337335215,0.14088707,3032.5,3031.1,4.59883069]
[1767337336316,0.14088707,3032.5,3031.1,0.00783069]
[1767337338314,0.14088707,3032.3,3031.1,0.00783069]
[1767337338717,0.30598707,3032.3,3031.1,0.00783069]
[1767337338918,0.14088707,3032.2,3030.4,1.52]
[1767337339817,0.14088707,3032.2,3031.0,0.00495205]
[1767337340213,0.14088707,3032.2,3030.4,1.52270845]
[1767337340214,0.14088707,3031.9,3030.4,0.00270845]
[1767337340516,0.14088707,3031.7,3030.4,0.00270845]
[1767337341217,0.14088707,3031.7,3030.7,0.00495205]
[1767337346821,0.14088707,3031.7,3030.4,0.00270845]
[1767337347823,0.14088707,3031.7,3030.7,0.00495205]
[1767337356733,0.14088707,3031.7,3030.4,0.00270845]
[1767337357228,0.31095348,3031.6,3030.4,0.00270845]
[1767337357530,0.14581348,3031.5,3030.4,0.00270845]
[1767337357724,0.14581348,3031.5,3030.6,0.00495205]
[1767337358129,0.14581348,3031.5,3029.2,0.16527]
[1767337358430,0.14581348,3031.4,3029.3,0.333]
[1767337359134,0.00495205,3030.7,3030.0,0.00495205]
[1767337359433,0.00796114,3030.7,3030.0,0.00495205]
[1767337361230,0.15377462,3030.7,3030.0,0.00495205]
[1767337362732,1.88311756,4685.1,3030.1,4.45535384]
[1767337362733,0.14581348,3032.1,3030.1,4.45535384]
[1767337363037,0.14581348,3032.1,3030.2,0.13460608]
[1767337363232,0.14581348,3032.1,3029.8,0.13460608]
[1767337363445,0.14581348,3032.1,3029.8,4.72260608]
[1767337363938,0.00495205,3031.3,3030.6,0.00495205]
[1767337376045,0.47531348,3032.0,3030.6,0.00495205]
[1767337377043,0.00495205,3031.6,3030.6,0.00495205]
[1767337384354,0.14959736,3031.6,3030.6,0.00495205]
[1767337388653,0.00495205,3031.6,3030.6,0.00495205]
[1767337396058,0.3295,3031.5,3030.6,0.00495205]
[1767337396662,0.16361386,3031.5,3030.6,0.00495205]
[1767337400066,0.14464531,3031.4,3030.6,0.00495205]
[1767337411063,0.14464531,3031.4,3029.7,0.16524]
[1767337411972,0.14464531,3031.4,3030.2,0.00495205]
[1767337416971,0.14464531,3031.4,3029.6,1.287]
[1767337417664,0.14464531,3031.4,3029.3,0.00249816]
[1767337417971,0.14464531,3031.4,3030.0,0.00495205]
[1767337419975,0.1637,3031.3,3030.0,0.00495205]
[1767337420274,0.13340025,3031.2,3030.0,0.00495205]
[1767337423174,0.13340025,3031.2,3029.3,0.00249816]
[1767337424475,0.29856025,3031.2,3029.3,0.00249816]
[1767337424678,0.29856025,3031.1,3029.3,0.00249816]
[1767337424976,0.13340025,3031.0,3029.3,0.00249816]
[1767337427580,0.29857025,3031.0,3029.3,0.00249816]
[1767337427781,0.13340025,3030.9,3029.3,0.00249816]
[1767337428077,0.29857025,3030.9,3029.3,0.00249816]
[1767337428279,0.13340025,3030.8,3029.3,0.00249816]
[1767337432179,0.29858025,3030.8,3029.3,0.00249816]
[1767337432483,0.13340025,3030.7,3029.3,0.00249816]
[1767337433983,0.29859025,3030.7,3029.3,0.00249816]
[1767337437385,0.1402006,3030.6,3029.3,0.00249816]
[1767337449989,0.1402006,3030.6,3028.5,4.574]
[1767337450190,0.1402006,3029.8,3028.5,4.574]
[1767337450391,0.1402006,3029.8,3028.1,0.512729]
[1767337451190,0.14332623,3029.8,3028.1,0.51662257]
[1767337451990,0.1402006,3029.6,3028.1,0.51662257]
[1767337453190,0.1402006,3029.6,3028.1,0.35129257]
[1767337454196,0.1639,3029.7,3027.1,0.13303342]
[1767337454197,0.16529,3028.9,3027.1,0.13303342]
[1767337454393,0.00495205,3028.3,3027.1,0.13303342]
[1767337455092,0.00495205,3028.3,3027.1,0.13730667]
[1767337461495,0.1639,3029.7,3027.3,0.13303342]
[1767337462199,0.17874158,3029.7,3027.3,0.13303342]
[1767337462402,0.00495205,3028.8,3028.2,0.00495205]
[1767337468502,0.00495205,3028.8,3028.2,0.14607354]
[1767337471613,0.164,3028.7,3028.2,0.14607354]
[1767337479133,0.164,3028.7,3028.2,0.00495205]
[1767337479334,0.164,3028.7,3028.2,0.14607354]
[1767337481433,0.00312563,3029.8,3028.2,0.14607354]
[1767337482335,0.00495205,3029.3,3028.2,0.14607354]
[1767337500455,0.00312563,3029.8,3028.2,0.14607354]
[1767337501448,0.00495205,3029.3,3028.2,0.14607354]
[1767337501749,0.00312563,3029.8,3028.2,0.14607354]
[1767337501956,0.00312563,3029.8,3028.4,0.17772589]
[1767337502854,0.00495205,3029.4,3028.4,0.17772589]
[1767337505053,0.17797106,3032.4,3029.4,0.17772589]
[1767337505354,0.17797106,3032.4,3029.9,0.17772589]
[1767337505558,0.17797106,3032.4,3030.1,0.17772589]
[1767337505948,0.00495205,3031.6,3030.9,0.00495205]
[1767337507858,0.00495205,3031.6,3030.9,0.18267794]
[1767337508047,0.0039911,3032.4,3030.9,0.18267794]
[1767337508962,0.00326084,3032.0,3030.9,0.18267794]
[1767337510460,0.00326084,3032.0,3031.0,0.17772589]
[1767337510758,0.00326084,3032.0,3031.1,3.601]
[1767337510953,0.00326084,3032.0,3031.2,0.17772589]
[1767337512064,0.00326084,3032.0,3030.9,0.00495205]
[1767337512362,0.00326084,3032.0,3031.1,4.562]
[1767337514762,0.00326084,3032.0,3030.9,0.00495205]
[1767337514763,0.00326084,3032.0,3030.9,0.18267794]
[1767337514965,0.00326084,3032.0,3031.0,0.64]
[1767337515263,0.00326084,3032.0,3031.0,0.81772589]
[1767337515865,0.00326084,3032.0,3031.1,0.17772589]
[1767337517571,0.00326084,3032.0,3030.9,4.56495205]
[1767337517866,0.00326084,3032.0,3030.9,0.00495205]
[1767337520969,0.1812319,3032.0,3030.9,0.00495205]
[1767337521878,0.17797106,3031.7,3030.1,0.00323017]
[1767337522075,0.00326084,3032.0,3030.1,0.18095606]
[1767337523082,0.00326084,3032.0,3030.7,0.00495205]
[1767337523878,0.00326084,3032.0,3030.7,0.18267794]
[1767337529789,0.00326084,3032.0,3030.8,4.558]
[1767337529987,0.00326084,3032.0,3030.7,0.18267794]
[1767337530396,0.1835746,3032.0,3030.7,0.00495205]
[1767337536999,0.00326084,3032.0,3030.7,0.00495205]
[1767337537698,0.00326084,3032.0,3030.7,0.18278928]
[1767337596152,0.2011539,3032.0,3030.7,0.18278928]
[1767337607362,0.3662739,3032.0,3030.7,0.18278928]
[1767337607562,0.19789306,3031.9,3030.7,0.00495205]
[1767337609565,0.16513,3031.8,3030.7,0.00495205]
[1767337611269,0.16513,3031.7,3030.7,0.00495205]
[1767337611464,0.36302306,3031.7,3030.7,0.00495205]
[1767337613671,0.16514,3031.6,3030.7,0.00495205]
[1767337613873,0.16514,3031.6,3030.3,0.19555367]
[1767337614864,0.16514,3031.6,3030.6,0.00495205]
[1767337617273,0.38564432,3031.6,3030.6,0.00495205]
[1767337621082,0.16514,3031.6,3030.6,0.00495205]
[1767337626498,0.00326084,3032.0,3030.6,0.20832897]
[1767337628296,0.22376516,3032.0,3030.6,0.00495205]
[1767337629595,0.38888516,3032.0,3030.6,0.00495205]
[1767337630498,0.22050432,3031.9,3030.6,0.00495205]
[1767337637290,0.38562432,3031.9,3030.6,0.00495205]
[1767337651418,0.16513,3031.8,3030.6,0.00495205]
[1767337657425,0.37165141,3031.8,3030.6,0.00495205]
[1767337657725,0.20652141,3031.8,3030.6,0.00495205]
[1767337657917,0.37166141,3031.5,3030.6,0.00495205]
[1767337660625,0.00326084,3032.0,3030.6,0.21596886]
[1767337692867,0.22315079,3032.0,3030.6,0.21596886]
[1767337697772,0.00326084,3032.0,3030.6,0.21596886]
[1767337707984,0.16837084,3032.0,3030.6,0.21596886]
[1767337718092,0.16512,3031.9,3030.6,0.21596886]
[1767337734603,0.16513,3031.7,3030.6,0.00495205]
[1767337734805,0.16514,3031.6,3030.6,0.00495205]
[1767337735103,0.49174,3031.6,3030.6,0.00495205]
[1767337740005,0.49174,3031.6,3030.6,0.22250699]
[1767337754708,0.49174,3031.6,3030.6,0.00495205]
[1767337759126,0.16514,3031.6,3030.6,0.00495205]
[1767337762823,0.3093,3031.5,3030.6,0.00495205]
[1767337764320,0.53327406,3031.5,3030.6,0.00495205]
[1767337764717,0.53327406,3031.5,3030.1,0.00323017]
[1767337764718,0.37023402,3031.4,3030.1,0.00323017]
[1767337765724,0.37023402,3031.4,3030.4,0.00495205]
[1767337775831,0.16515,3031.3,3030.4,0.00495205]
[1767337776127,0.16515,3031.3,3030.1,0.00323017]
[1767337776328,0.38128537,3031.3,3030.1,0.00323017]
[1767337776527,0.21613537,3031.2,3030.1,0.00323017]
[1767337777231,0.21613537,3031.2,3030.3,0.00495205]
[1767337780432,0.16515,3031.3,3030.3,0.00495205]
[1767337781028,0.16515,3031.3,3030.3,0.22468536]
[1767337781233,0.16515,3031.3,3030.3,0.00495205]
[1767337791138,0.3299,3031.2,3030.3,0.00495205]
[1767337791934,0.3299,3031.2,3030.3,0.22468536]
[1767337804638,0.16512,3031.9,3030.4,0.20263071]
[1767337806446,0.21008576,3032.0,3030.4,0.20263071]
[1767337808349,0.2918,3031.9,3030.4,0.20263071]
[1767337808846,0.49862492,3031.9,3030.4,0.20263071]
[1767337809145,0.20682492,3031.8,3030.4,0.20263071]
[1767337809753,0.2918,3031.9,3030.4,0.20263071]
[1767337811048,0.49862492,3031.9,3030.4,0.20263071]
[1767337811249,0.20682492,3031.8,3030.4,0.20263071]
[1767337811546,0.20682492,3031.8,3030.3,0.00495205]
[1767337822151,0.2918,3031.9,3030.4,4.23272416]
[1767337822456,0.2918,3031.9,3030.6,0.20263071]
[1767337824766,0.2918,3031.9,3030.7,0.20263071]
[1767337824956,0.2918,3031.9,3030.8,4.511]
[1767337825353,0.00326084,3032.0,3030.8,4.71561933]
[1767337825854,0.00326084,3032.0,3030.9,0.20308265]
[1767337829563,0.3298,3031.9,3030.9,0.20308265]
[1767337833970,0.20628864,3032.4,3031.0,4.33043023]
[1767337834264,0.20628864,3032.4,3031.0,4.49560023]
[1767337834465,0.20628864,3032.4,3031.0,4.33043023]
[1767337834968,0.00495205,3032.0,3031.0,4.33043023]
[1767337835466,0.20628864,3032.4,3031.0,4.33043023]
[1767337835667,0.20628864,3032.4,3031.1,0.16516]
[1767337836162,0.20628864,3032.4,3031.2,4.19019]
[1767337836570,0.00495205,3032.1,3031.2,4.19019]
[1767337841168,0.20724959,3032.1,3031.1,1.57453242]
[1767337841371,0.20724959,3032.1,3031.3,4.527]
[1767337842974,0.20724959,3032.1,3031.1,1.40937242]
[1767337843172,0.20724959,3032.1,3030.7,1.44405549]
[1767337843173,0.20724959,3032.1,3030.7,1.40196446]
[1767337843373,0.20724959,3032.1,3030.8,4.531]
[1767337843674,0.20229754,3031.9,3030.8,4.531]
[1767337856883,0.20229754,3031.9,3029.9,0.16523]
[1767337857186,0.20229754,3031.9,3030.4,4.535]
[1767337869097,0.3042,3032.0,3030.4,4.535]
[1767337870501,0.19326632,3032.1,3030.4,4.535]
[1767337874707,0.2812,3032.0,3030.4,4.535]
[1767337876106,0.46951427,3032.0,3030.4,4.535]
[1767337876308,0.18831427,3031.9,3030.4,4.535]
[1767337879317,0.18831427,3031.9,3030.3,1.5942587]
[1767337879507,0.18831427,3031.9,3030.4,4.534]
[1767337899132,0.3298,3031.8,3030.4,4.534]
[1767337899733,0.50428063,3031.8,3030.4,4.534]
[1767337910148,0.17448063,3031.8,3030.4,4.534]
[1767337913451,0.3298,3031.7,3030.4,4.534]
[1767337913639,0.50428063,3031.7,3030.4,4.534]
[1767337914450,0.3298,3031.7,3030.4,4.534]
[1767337914650,0.3298,3031.7,3030.5,4.38034526]
[1767337918753,0.489041,3031.7,3030.6,4.537]
[1767337921060,0.489041,3031.7,3030.7,4.539]
[1767337924561,0.159241,3031.6,3030.7,4.539]
[1767337924762,0.159241,3031.6,3030.8,4.539]
[1767337930263,0.159241,3031.6,3030.3,1.4290587]
[1767337930453,0.159241,3031.6,3030.4,4.538]
[1767337936265,0.2858,3031.5,3030.4,4.538]
[1767337950573,0.43643577,3031.5,3030.4,4.538]
[1767337960198,0.15063577,3031.4,3030.4,4.538]
[1767337960795,0.15063577,3032.0,3030.4,4.538]
[1767337962800,0.15063577,3031.8,3030.4,4.538]
[1767337965097,0.15063577,3031.8,3030.5,4.2303486]
[1767337970103,0.313,3031.9,3030.5,4.2303486]
[1767337979506,0.14991776,3031.8,3030.5,4.2303486]
[1767337979708,0.14991776,3031.8,3030.4,0.1652]
[1767337979907,0.14991776,3031.8,3030.5,4.586]
[1767337982414,0.14991776,3031.8,3030.4,0.1652]
[1767337982712,0.14991776,3031.8,3030.5,4.589]
[1767337984316,0.3259,3031.7,3030.5,4.589]
[1767337984504,0.14991776,3031.6,3030.5,4.589]
[1767338005131,0.14991776,3031.6,3030.3,0.00495205]
[1767338006531,0.3259,3031.7,3030.3,0.00495205]
[1767338006834,0.3259,3031.7,3030.4,4.3348218]
[1767338007030,0.3259,3031.7,3030.4,5.70097308]
[1767338007433,0.14927093,3031.9,3030.4,5.70097308]
[1767338008129,0.00495205,3032.1,3030.4,5.70097308]
[1767338008130,0.00495205,3032.1,3030.4,4.5000218]
[1767338008434,0.00495205,3032.1,3030.4,5.91221753]
[1767338008631,0.00495205,3032.1,3030.6,0.16519]
[1767338008827,0.00495205,3032.1,3030.7,4.599]
[1767338009133,0.00495205,3032.1,3030.7,8.97753712]
[1767338011239,0.3086,3032.0,3030.7,8.97753712]
[1767338012735,0.3086,3032.0,3030.7,4.599]
[1767338012933,0.3086,3032.0,3030.6,0.16519]
[1767338013140,0.3086,3032.0,3030.7,4.609]
[1767338013438,0.45787093,3032.0,3030.7,4.609]
[1767338017142,0.15407477,3032.0,3030.8,4.32069038]
[1767338018138,0.15407477,3032.0,3030.9,0.16517]
[1767338018536,0.0039911,3032.4,3031.1,0.16516]
[1767338018940,0.0039911,3032.4,3031.2,4.24136686]
[1767338022141,0.0212,3032.3,3031.2,4.24136686]
[1767338022848,0.0212,3032.3,3031.3,4.623]
[1767338023150,0.14927093,3032.9,3031.4,4.22177117]
[1767338023334,0.14927093,3032.9,3031.8,0.00495205]
[1767338023547,0.14927093,3032.9,3031.9,4.624]
[1767338024042,0.14927093,3032.9,3031.8,0.00495205]
[1767338024243,0.1517405,3032.9,3031.8,4.62995205]
[1767338024547,0.1517405,3032.9,3031.8,0.00495205]
[1767338029051,0.14927093,3032.8,3031.4,4.624]
[1767338030049,0.14927093,3032.3,3031.8,0.00495205]
[1767338032755,0.14927093,3032.3,3030.9,4.623]
[1767338033649,0.14927093,3032.3,3031.3,0.00495205]
[1767338041661,0.14927093,3032.3,3030.9,4.623]
[1767338042658,0.14927093,3032.3,3031.3,0.00495205]
[1767338048168,0.14927093,3032.3,3030.9,4.623]
[1767338048169,0.14927093,3032.3,3030.4,4.62]
[1767338049174,0.14927093,3032.3,3031.0,0.00495205]
[1767338054279,0.15066733,3032.2,3031.0,0.00495205]
[1767338055779,0.15066733,3032.2,3030.1,0.30809134]
[1767338056780,0.15066733,3032.2,3030.8,0.00495205]
[1767338081202,0.00495205,3032.4,3030.8,0.00495205]
[1767338081203,0.31446494,3032.1,3030.8,0.00495205]
[1767338081399,0.14935494,3032.0,3030.8,0.00495205]
[1767338089823,0.14935494,3031.9,3030.1,0.00323017]
[1767338090128,0.14935494,3031.7,3030.1,0.00323017]
[1767338090829,0.14935494,3031.7,3030.6,0.00330136]
[1767338100036,0.14935494,3031.7,3030.1,0.00323017]
[1767338102141,0.31448494,3031.7,3030.1,0.00323017]
[1767338102334,0.1396056,3031.6,3030.1,0.00323017]
[1767338102535,0.3047456,3031.6,3030.1,0.00323017]
[1767338103037,0.1396056,3031.5,3030.1,0.00323017]
[1767338125163,0.16512,3031.8,3030.1,0.00323017]
[1767338125164,0.14412806,3031.3,3030.1,0.00323017]
[1767338137369,0.14412806,3031.3,3029.2,4.77327]
[1767338137667,0.13626868,3030.5,3029.2,4.77327]
[1767338138469,0.13935766,3030.5,3029.2,4.77729023]
[1767338142875,0.3299,3030.4,3029.2,4.77729023]
[1767338144278,0.46616868,3030.4,3029.2,4.77729023]
[1767338149077,0.13626868,3030.3,3029.2,4.77729023]
[1767338149277,0.13626868,3030.3,3029.2,0.16929023]
[1767338149475,0.13626868,3030.3,3029.2,0.00402023]
[1767338163486,0.33,3030.2,3029.2,0.00402023]
[1767338163686,0.14662975,3030.1,3029.2,0.00402023]
[1767338172193,0.14662975,3030.1,3029.0,0.35334997]
[1767338173102,0.14662975,3030.1,3029.0,0.35569881]
[1767338180307,0.14662975,3030.1,3029.0,0.00234884]
[1767338182109,0.14662975,3030.1,3028.6,4.628]
[1767338183108,0.14662975,3030.1,3028.6,4.63146407]
[1767338193812,0.33,3030.0,3028.6,4.63146407]
[1767338194009,0.14559187,3029.9,3028.6,4.63146407]
[1767338209128,0.33,3029.8,3028.6,4.63146407]
[1767338209317,0.14559187,3029.7,3028.6,4.63146407]
[1767338222838,0.33,3029.8,3028.6,5.88819397]
[1767338223134,0.33,3029.8,3028.6,4.63146407]
[1767338226235,0.33,3029.8,3028.8,0.16529]
[1767338226641,0.33,3029.8,3028.9,4.3492616]
[1767338227134,0.26566075,3029.8,3028.9,4.5145416]
[1767338227335,0.26566075,3029.8,3028.9,10.5145416]
[1767338231340,0.26566075,3029.8,3028.9,4.5145416]